[Event "Titled Tuesday Blitz December 06 Early 2022"]
[White "Aradhya, Garg"]
[Black "Vlassov, Nikolai"]
[WhiteFideId "25006746"]
[BlackFideId "4103360"]
[WhiteElo "2278"]
[BlackElo "2324"]
[Result "1-0"]
[Round "11"]
[TimeControl "180+1"]
[Date "2022.12.06"]
[WhiteClock "0:00:14"]
[BlackClock "0:00:03"]

1. d4 {[%clk 0:02:59]}  Nf6 {[%clk 0:02:59]} 2. c4 {[%clk 0:02:59]}  Nc6 {[%clk 0:02:58]} 3. Nf3 {[%clk 0:02:58]}  e6 {[%clk 0:02:58]} 4. Nc3 {[%clk 0:02:57]}  Bb4 {[%clk 0:02:58]} 5. Qc2 {[%clk 0:02:58]}  d6 {[%clk 0:02:57]} 6. Bd2 {[%clk 0:02:58]}  O-O {[%clk 0:02:56]} 7. a3 {[%clk 0:02:58]}  Bxc3 {[%clk 0:02:56]} 8. Bxc3 {[%clk 0:02:59]}  Qe7 {[%clk 0:02:51]} 9. b4 {[%clk 0:02:48]}  e5 {[%clk 0:02:51]} 10. dxe5 {[%clk 0:02:48]}  Nxe5 {[%clk 0:02:34]} 11. e3 {[%clk 0:02:45]}  Re8 {[%clk 0:02:32]} 12. Nxe5 {[%clk 0:02:26]}  dxe5 {[%clk 0:02:31]} 13. Bd3 {[%clk 0:02:26]}  h6 {[%clk 0:02:26]} 14. h3 {[%clk 0:02:22]}  a5 {[%clk 0:02:10]} 15. O-O {[%clk 0:02:21]}  e4 {[%clk 0:02:01]} 16. Be2 {[%clk 0:02:19]}  Bf5 {[%clk 0:02:00]} 17. bxa5 {[%clk 0:02:18]}  Qe6 {[%clk 0:01:55]} 18. Kh2 {[%clk 0:02:03]}  Nd7 {[%clk 0:01:35]} 19. Rad1 {[%clk 0:01:58]}  Ne5 {[%clk 0:01:28]} 20. Rd5 {[%clk 0:01:57]}  Nd3 {[%clk 0:01:16]} 21. f4 {[%clk 0:01:56]}  c6 {[%clk 0:01:12]} 22. Rd4 {[%clk 0:01:55]}  Qe7 {[%clk 0:00:57]} 23. g4 {[%clk 0:01:34]}  Bh7 {[%clk 0:00:39]} 24. f5 {[%clk 0:01:34]}  Qxa3 {[%clk 0:00:34]} 25. Bxd3 {[%clk 0:01:20]}  exd3 {[%clk 0:00:33]} 26. Qxd3 {[%clk 0:01:21]}  Qe7 {[%clk 0:00:26]} 27. Re1 {[%clk 0:01:15]}  f6 {[%clk 0:00:25]} 28. Rd7 {[%clk 0:01:07]}  Red8 {[%clk 0:00:20]} 29. Rxe7 {[%clk 0:01:00]}  Rxd3 {[%clk 0:00:19]} 30. Bb4 {[%clk 0:01:01]}  Kh8 {[%clk 0:00:17]} 31. Rxb7 {[%clk 0:01:00]}  Bg8 {[%clk 0:00:17]} 32. Rb6 {[%clk 0:00:49]}  Bxc4 {[%clk 0:00:13]} 33. Rxc6 {[%clk 0:00:50]}  Bd5 {[%clk 0:00:13]} 34. Rd6 {[%clk 0:00:49]}  Rb8 {[%clk 0:00:12]} 35. Rb1 {[%clk 0:00:34]}  Rc8 {[%clk 0:00:05]} 36. Rb2 {[%clk 0:00:17]}  Rc1 {[%clk 0:00:04]} 37. Rd2 {[%clk 0:00:17]}  Rh1+ {[%clk 0:00:01]} 38. Kg3 {[%clk 0:00:18]}  Rxe3+ {[%clk 0:00:02]} 39. Kf2 {[%clk 0:00:18]}  Rf3+ {[%clk 0:00:02]} 40. Ke2 {[%clk 0:00:18]}  Rh2+ {[%clk 0:00:02]} 41. Ke1 {[%clk 0:00:18]}  Rh1+ {[%clk 0:00:02]} 42. Ke2 {[%clk 0:00:19]}  Rh2+ {[%clk 0:00:02]} 43. Kd1 {[%clk 0:00:19]}  Rh1+ {[%clk 0:00:02]} 44. Kc2 {[%clk 0:00:19]}  Be4+ {[%clk 0:00:03]} 45. R6d3 {[%clk 0:00:14]} 1-0


[Site "https://www.chess.com"]

[Event "Titled Tuesday Blitz December 06 Early 2022"]
[White "Aravindh, Chithambaram VR."]
[Black "Zhigalko, Sergei"]
[WhiteFideId "5072786"]
[BlackFideId "13502956"]
[WhiteElo "2586"]
[BlackElo "2662"]
[Result "1-0"]
[Round "11"]
[TimeControl "180+1"]
[Date "2022.12.06"]
[WhiteClock "0:00:01"]
[BlackClock "0:00:02"]

1. g3 {[%clk 0:03:00]}  d5 {[%clk 0:03:00]} 2. Bg2 {[%clk 0:02:58]}  c6 {[%clk 0:03:01]} 3. Nf3 {[%clk 0:02:55]}  Bg4 {[%clk 0:03:01]} 4. b3 {[%clk 0:02:53]}  Bxf3 {[%clk 0:02:56]} 5. exf3 {[%clk 0:02:49]}  Nf6 {[%clk 0:02:48]} 6. Bb2 {[%clk 0:02:48]}  g6 {[%clk 0:02:46]} 7. O-O {[%clk 0:02:38]}  Bg7 {[%clk 0:02:46]} 8. f4 {[%clk 0:02:32]}  e6 {[%clk 0:02:46]} 9. d3 {[%clk 0:02:11]}  O-O {[%clk 0:02:45]} 10. Nd2 {[%clk 0:02:12]}  a5 {[%clk 0:02:45]} 11. a4 {[%clk 0:02:10]}  Nbd7 {[%clk 0:02:44]} 12. Nf3 {[%clk 0:02:10]}  Qb6 {[%clk 0:02:44]} 13. Qe2 {[%clk 0:02:01]}  Rfe8 {[%clk 0:02:31]} 14. Ne5 {[%clk 0:01:59]}  Nxe5 {[%clk 0:02:21]} 15. fxe5 {[%clk 0:02:00]}  Nd7 {[%clk 0:02:21]} 16. Kh1 {[%clk 0:02:00]}  Qc7 {[%clk 0:02:16]} 17. f4 {[%clk 0:02:00]}  b5 {[%clk 0:02:17]} 18. d4 {[%clk 0:01:47]}  bxa4 {[%clk 0:02:11]} 19. Rxa4 {[%clk 0:01:46]}  Nb6 {[%clk 0:02:11]} 20. Ra3 {[%clk 0:01:37]}  a4 {[%clk 0:02:12]} 21. g4 {[%clk 0:01:37]}  Bf8 {[%clk 0:02:10]} 22. f5 {[%clk 0:01:17]}  Bxa3 {[%clk 0:02:06]} 23. Bxa3 {[%clk 0:01:18]}  axb3 {[%clk 0:02:07]} 24. Bd6 {[%clk 0:01:16]}  Qd8 {[%clk 0:01:39]} 25. cxb3 {[%clk 0:00:25]}  exf5 {[%clk 0:01:39]} 26. Qf2 {[%clk 0:00:23]}  Qg5 {[%clk 0:00:43]} 27. gxf5 {[%clk 0:00:18]}  Qxf5 {[%clk 0:00:43]} 28. Qg3 {[%clk 0:00:13]}  Qc2 {[%clk 0:00:29]} 29. Qf4 {[%clk 0:00:10]}  Ra7 {[%clk 0:00:10]} 30. Bc5 {[%clk 0:00:10]}  Qxb3 {[%clk 0:00:11]} 31. e6 {[%clk 0:00:07]}  fxe6 {[%clk 0:00:10]} 32. Qh6 {[%clk 0:00:04]}  Nd7 {[%clk 0:00:05]} 33. Bxa7 {[%clk 0:00:04]}  Qd3 {[%clk 0:00:02]} 34. Bc5 {[%clk 0:00:02]}  Nxc5 {[%clk 0:00:02]} 35. Qf4 {[%clk 0:00:01]} 1-0


[Site "https://www.chess.com"]

[Event "Titled Tuesday Blitz December 06 Early 2022"]
[White "Artemenko, Oleg"]
[Black "Sadhwani, Raunak"]
[WhiteFideId "14201798"]
[BlackFideId "35093487"]
[WhiteElo "2287"]
[BlackElo "2657"]
[Result "1-0"]
[Round "11"]
[TimeControl "180+1"]
[Date "2022.12.06"]
[WhiteClock "0:00:06"]
[BlackClock "0:00:01"]

1. d4 {[%clk 0:03:00]}  Nf6 {[%clk 0:02:59]} 2. Nc3 {[%clk 0:03:01]}  d5 {[%clk 0:02:57]} 3. Bf4 {[%clk 0:03:01]}  c5 {[%clk 0:02:55]} 4. e4 {[%clk 0:03:01]}  Nxe4 {[%clk 0:02:37]} 5. Nxe4 {[%clk 0:03:01]}  dxe4 {[%clk 0:02:38]} 6. dxc5 {[%clk 0:03:01]}  Qa5+ {[%clk 0:02:26]} 7. c3 {[%clk 0:03:02]}  Qxc5 {[%clk 0:02:26]} 8. Qa4+ {[%clk 0:03:01]}  Nc6 {[%clk 0:02:25]} 9. Qxe4 {[%clk 0:03:01]}  Bf5 {[%clk 0:02:21]} 10. Qa4 {[%clk 0:02:59]}  a6 {[%clk 0:02:11]} 11. Be3 {[%clk 0:02:53]}  Qa5 {[%clk 0:02:09]} 12. Qxa5 {[%clk 0:02:52]}  Nxa5 {[%clk 0:02:10]} 13. Nf3 {[%clk 0:02:52]}  Nc6 {[%clk 0:02:10]} 14. O-O-O {[%clk 0:02:51]}  e5 {[%clk 0:02:05]} 15. Bc4 {[%clk 0:02:45]}  f6 {[%clk 0:02:05]} 16. Rhe1 {[%clk 0:02:39]}  Rd8 {[%clk 0:02:01]} 17. Bb6 {[%clk 0:02:34]}  Rxd1+ {[%clk 0:02:00]} 18. Rxd1 {[%clk 0:02:35]}  Be7 {[%clk 0:02:00]} 19. Bd5 {[%clk 0:02:02]}  Bd7 {[%clk 0:01:39]} 20. Nd2 {[%clk 0:02:01]}  Bd8 {[%clk 0:01:03]} 21. Be3 {[%clk 0:01:49]}  Be7 {[%clk 0:01:03]} 22. Nc4 {[%clk 0:01:45]}  Nd8 {[%clk 0:01:03]} 23. Na5 {[%clk 0:01:32]}  b5 {[%clk 0:00:29]} 24. Bb6 {[%clk 0:01:32]}  h5 {[%clk 0:00:26]} 25. Nb7 {[%clk 0:01:03]}  Nxb7 {[%clk 0:00:25]} 26. Bxb7 {[%clk 0:01:04]}  Rh6 {[%clk 0:00:21]} 27. Be3 {[%clk 0:00:57]}  Rg6 {[%clk 0:00:21]} 28. Be4 {[%clk 0:00:58]}  f5 {[%clk 0:00:21]} 29. Rxd7 {[%clk 0:00:57]}  fxe4 {[%clk 0:00:20]} 30. Rd5 {[%clk 0:00:55]}  Rxg2 {[%clk 0:00:19]} 31. Rxe5 {[%clk 0:00:56]}  Kd7 {[%clk 0:00:10]} 32. Rxh5 {[%clk 0:00:56]}  Bd6 {[%clk 0:00:10]} 33. h4 {[%clk 0:00:51]}  Ke6 {[%clk 0:00:10]} 34. Kd2 {[%clk 0:00:48]}  Rg4 {[%clk 0:00:10]} 35. Ke2 {[%clk 0:00:47]}  Be7 {[%clk 0:00:10]} 36. Bd4 {[%clk 0:00:43]}  g6 {[%clk 0:00:09]} 37. Re5+ {[%clk 0:00:36]}  Kd7 {[%clk 0:00:10]} 38. h5 {[%clk 0:00:29]}  Bd6 {[%clk 0:00:10]} 39. Rd5 {[%clk 0:00:10]}  Ke6 {[%clk 0:00:10]} 40. c4 {[%clk 0:00:09]}  bxc4 {[%clk 0:00:06]} 41. Ra5 {[%clk 0:00:10]}  gxh5 {[%clk 0:00:06]} 42. Rxh5 {[%clk 0:00:10]}  Rg6 {[%clk 0:00:02]} 43. Ra5 {[%clk 0:00:10]}  Rh6 {[%clk 0:00:02]} 44. Rxa6 {[%clk 0:00:10]}  Kd5 {[%clk 0:00:02]} 45. Be3 {[%clk 0:00:10]}  Re6 {[%clk 0:00:03]} 46. Ra5+ {[%clk 0:00:10]}  Kc6 {[%clk 0:00:03]} 47. Kd1 {[%clk 0:00:07]}  Re8 {[%clk 0:00:02]} 48. Kc2 {[%clk 0:00:07]}  Rf8 {[%clk 0:00:03]} 49. Rh5 {[%clk 0:00:06]}  Rf7 {[%clk 0:00:02]} 50. Kc3 {[%clk 0:00:06]}  Bf4 {[%clk 0:00:01]} 51. Bd4 {[%clk 0:00:06]} 1-0


[Site "https://www.chess.com"]

[Event "Titled Tuesday Blitz December 06 Early 2022"]
[White "Atakhan, Abtin"]
[Black "Salman, Pavel"]
[WhiteFideId "22502203"]
[BlackFideId "24153753"]
[WhiteElo "2189"]
[BlackElo "2187"]
[Result "0-1"]
[Round "11"]
[TimeControl "180+1"]
[Date "2022.12.07"]
[WhiteClock "0:00:03"]
[BlackClock "0:00:20"]

1. e4 {[%clk 0:03:00]}  d6 {[%clk 0:02:58]} 2. d4 {[%clk 0:02:58]}  Nf6 {[%clk 0:02:58]} 3. Nc3 {[%clk 0:02:58]}  g6 {[%clk 0:02:59]} 4. Bf4 {[%clk 0:02:50]}  Bg7 {[%clk 0:02:58]} 5. Qd2 {[%clk 0:02:49]}  c6 {[%clk 0:02:58]} 6. Bh6 {[%clk 0:02:46]}  O-O {[%clk 0:02:58]} 7. Bxg7 {[%clk 0:02:37]}  Kxg7 {[%clk 0:02:57]} 8. f3 {[%clk 0:02:38]}  b5 {[%clk 0:02:57]} 9. Bd3 {[%clk 0:02:31]}  b4 {[%clk 0:02:53]} 10. Nd1 {[%clk 0:02:29]}  c5 {[%clk 0:02:53]} 11. Ne2 {[%clk 0:02:27]}  Nc6 {[%clk 0:02:50]} 12. dxc5 {[%clk 0:02:16]}  dxc5 {[%clk 0:02:50]} 13. Ne3 {[%clk 0:02:15]}  Ne5 {[%clk 0:02:44]} 14. Nc4 {[%clk 0:02:05]}  Nxd3+ {[%clk 0:02:37]} 15. Qxd3 {[%clk 0:02:00]}  Ba6 {[%clk 0:02:29]} 16. Qxd8 {[%clk 0:01:58]}  Rfxd8 {[%clk 0:02:30]} 17. Ne3 {[%clk 0:01:55]}  Rd7 {[%clk 0:02:24]} 18. a3 {[%clk 0:01:39]}  Rad8 {[%clk 0:02:24]} 19. Nf1 {[%clk 0:01:37]}  Bb5 {[%clk 0:01:33]} 20. Rc1 {[%clk 0:01:08]}  a5 {[%clk 0:01:30]} 21. c4 {[%clk 0:01:05]}  Ba4 {[%clk 0:01:14]} 22. axb4 {[%clk 0:00:57]}  axb4 {[%clk 0:01:14]} 23. Kf2 {[%clk 0:00:56]}  Bb3 {[%clk 0:01:07]} 24. g4 {[%clk 0:00:37]}  Rd2 {[%clk 0:01:05]} 25. Nxd2 {[%clk 0:00:36]}  Rxd2 {[%clk 0:01:03]} 26. Ke3 {[%clk 0:00:33]}  Rxb2 {[%clk 0:01:02]} 27. Nf4 {[%clk 0:00:28]}  Nd7 {[%clk 0:00:51]} 28. Nd3 {[%clk 0:00:20]}  Ra2 {[%clk 0:00:43]} 29. h4 {[%clk 0:00:12]}  Ra5 {[%clk 0:00:40]} 30. Rh2 {[%clk 0:00:10]}  Nb6 {[%clk 0:00:40]} 31. Ne5 {[%clk 0:00:04]}  f6 {[%clk 0:00:33]} 32. Nc6 {[%clk 0:00:04]}  Ra3 {[%clk 0:00:33]} 33. h5 {[%clk 0:00:03]}  Ba4+ {[%clk 0:00:30]} 34. Kf4 {[%clk 0:00:02]}  Bxc6 {[%clk 0:00:31]} 35. hxg6 {[%clk 0:00:03]}  hxg6 {[%clk 0:00:31]} 36. Rch1 {[%clk 0:00:03]}  Kf7 {[%clk 0:00:29]} 37. Rh7+ {[%clk 0:00:01]}  Ke6 {[%clk 0:00:30]} 38. g5 {[%clk 0:00:02]}  fxg5+ {[%clk 0:00:25]} 39. Kg4 {[%clk 0:00:03]}  Nxc4 {[%clk 0:00:25]} 40. R1h6 {[%clk 0:00:03]}  Ne5+ {[%clk 0:00:25]} 41. Kxg5 {[%clk 0:00:03]}  Nf7+ {[%clk 0:00:24]} 42. Rxf7 {[%clk 0:00:03]}  Kxf7 {[%clk 0:00:24]} 43. Rxg6 {[%clk 0:00:03]}  Bd7 {[%clk 0:00:20]} 44. f4 {[%clk 0:00:03]}  Rg3+ {[%clk 0:00:20]} 0-1


[Site "https://www.chess.com"]

[Event "Titled Tuesday Blitz December 06 Early 2022"]
[White "Battlecruiser_Operational"]
[Black "Belozerov, Andrei"]
[BlackFideId "4120213"]
[WhiteElo "2277"]
[BlackElo "2360"]
[Result "0-1"]
[Round "11"]
[TimeControl "180+1"]
[Date "2022.12.07"]
[WhiteClock "0:00:08"]
[BlackClock "0:01:40"]

1. d4 {[%clk 0:03:00]}  d5 {[%clk 0:02:59]} 2. c4 {[%clk 0:03:00]}  e6 {[%clk 0:02:59]} 3. Nc3 {[%clk 0:03:00]}  c6 {[%clk 0:02:58]} 4. e3 {[%clk 0:02:59]}  Nf6 {[%clk 0:02:58]} 5. Nf3 {[%clk 0:02:56]}  Nbd7 {[%clk 0:02:57]} 6. Qc2 {[%clk 0:02:56]}  Bd6 {[%clk 0:02:57]} 7. Bd2 {[%clk 0:02:55]}  O-O {[%clk 0:02:55]} 8. O-O-O {[%clk 0:02:49]}  b5 {[%clk 0:02:55]} 9. c5 {[%clk 0:02:49]}  Bc7 {[%clk 0:02:53]} 10. Bd3 {[%clk 0:02:45]}  a5 {[%clk 0:02:35]} 11. Ne2 {[%clk 0:02:42]}  e5 {[%clk 0:02:33]} 12. Nxe5 {[%clk 0:02:30]}  Nxe5 {[%clk 0:02:27]} 13. dxe5 {[%clk 0:02:30]}  Bxe5 {[%clk 0:02:28]} 14. f4 {[%clk 0:02:27]}  Bc7 {[%clk 0:02:27]} 15. Nd4 {[%clk 0:02:27]}  Bd7 {[%clk 0:02:19]} 16. h3 {[%clk 0:02:26]}  Re8 {[%clk 0:02:19]} 17. Rdf1 {[%clk 0:02:07]}  a4 {[%clk 0:02:19]} 18. g4 {[%clk 0:02:05]}  a3 {[%clk 0:02:18]} 19. b3 {[%clk 0:02:01]}  Ne4 {[%clk 0:02:14]} 20. Be1 {[%clk 0:01:57]}  Qe7 {[%clk 0:02:10]} 21. b4 {[%clk 0:01:56]}  Ra4 {[%clk 0:02:07]} 22. Rhg1 {[%clk 0:01:52]}  Nxc5 {[%clk 0:02:01]} 23. Bxh7+ {[%clk 0:01:39]}  Kh8 {[%clk 0:02:01]} 24. Bd2 {[%clk 0:00:36]}  Na6 {[%clk 0:01:56]} 25. Bd3 {[%clk 0:00:24]}  Nxb4 {[%clk 0:01:55]} 26. Bxb4 {[%clk 0:00:23]}  Rxb4 {[%clk 0:01:55]} 27. Rf3 {[%clk 0:00:22]}  Rb2 {[%clk 0:01:55]} 28. Qc3 {[%clk 0:00:19]}  b4 {[%clk 0:01:51]} 29. Qe1 {[%clk 0:00:16]}  Qc5+ {[%clk 0:01:50]} 30. Nc2 {[%clk 0:00:14]}  Re4 {[%clk 0:01:43]} 31. Bxe4 {[%clk 0:00:11]}  dxe4 {[%clk 0:01:43]} 32. Qh4+ {[%clk 0:00:10]}  Kg8 {[%clk 0:01:43]} 33. Rf2 {[%clk 0:00:10]}  Rxa2 {[%clk 0:01:41]} 34. Rd1 {[%clk 0:00:08]}  Ra1+ {[%clk 0:01:40]} 35. Kd2 {[%clk 0:00:08]}  Qc3+ {[%clk 0:01:40]} 36. Ke2 {[%clk 0:00:08]}  Qxc2+ {[%clk 0:01:40]} 37. Rd2 {[%clk 0:00:08]}  Qc4+ {[%clk 0:01:40]} 0-1


[Site "https://www.chess.com"]

[Event "Titled Tuesday Blitz December 06 Early 2022"]
[White "Bon, Michael"]
[Black "Averjanov, Alexey"]
[WhiteFideId "620696"]
[BlackFideId "14109867"]
[WhiteElo "2383"]
[BlackElo "2683"]
[Result "1-0"]
[Round "11"]
[TimeControl "180+1"]
[Date "2022.12.07"]
[WhiteClock "0:00:10"]
[BlackClock "0:00:44"]

1. e4 {[%clk 0:03:00]}  c6 {[%clk 0:02:59]} 2. d4 {[%clk 0:03:00]}  d5 {[%clk 0:02:59]} 3. Nc3 {[%clk 0:03:01]}  dxe4 {[%clk 0:02:59]} 4. Nxe4 {[%clk 0:03:02]}  Bf5 {[%clk 0:02:59]} 5. Ng3 {[%clk 0:02:58]}  Bg6 {[%clk 0:03:00]} 6. Nf3 {[%clk 0:02:58]}  Nd7 {[%clk 0:02:59]} 7. h4 {[%clk 0:02:58]}  h6 {[%clk 0:02:59]} 8. h5 {[%clk 0:02:59]}  Bh7 {[%clk 0:02:59]} 9. Bd3 {[%clk 0:02:59]}  Bxd3 {[%clk 0:02:59]} 10. Qxd3 {[%clk 0:03:00]}  e6 {[%clk 0:02:59]} 11. Bf4 {[%clk 0:02:59]}  Ngf6 {[%clk 0:03:00]} 12. O-O-O {[%clk 0:02:59]}  Be7 {[%clk 0:03:00]} 13. Kb1 {[%clk 0:02:54]}  O-O {[%clk 0:03:00]} 14. Rhe1 {[%clk 0:02:54]}  c5 {[%clk 0:02:59]} 15. Ne4 {[%clk 0:02:31]}  Nxe4 {[%clk 0:02:59]} 16. Qxe4 {[%clk 0:02:32]}  Nf6 {[%clk 0:02:56]} 17. Qxb7 {[%clk 0:02:23]}  Nxh5 {[%clk 0:02:32]} 18. dxc5 {[%clk 0:02:15]}  Qc8 {[%clk 0:02:21]} 19. Qxc8 {[%clk 0:01:41]}  Rfxc8 {[%clk 0:02:17]} 20. Bd6 {[%clk 0:01:42]}  Kf8 {[%clk 0:02:14]} 21. Ne5 {[%clk 0:01:37]}  Nf6 {[%clk 0:02:13]} 22. c4 {[%clk 0:01:08]}  Ke8 {[%clk 0:02:13]} 23. b4 {[%clk 0:00:59]}  Nd7 {[%clk 0:01:58]} 24. Nxd7 {[%clk 0:00:38]}  Kxd7 {[%clk 0:01:59]} 25. Bxe7+ {[%clk 0:00:39]}  Kxe7 {[%clk 0:02:00]} 26. Kc2 {[%clk 0:00:38]}  Rab8 {[%clk 0:02:00]} 27. Kc3 {[%clk 0:00:36]}  h5 {[%clk 0:01:53]} 28. Rd6 {[%clk 0:00:36]}  Rc7 {[%clk 0:01:53]} 29. Red1 {[%clk 0:00:33]}  Rbc8 {[%clk 0:01:49]} 30. Ra6 {[%clk 0:00:25]}  g5 {[%clk 0:01:47]} 31. a4 {[%clk 0:00:23]}  h4 {[%clk 0:01:47]} 32. a5 {[%clk 0:00:21]}  g4 {[%clk 0:01:46]} 33. Rh1 {[%clk 0:00:19]}  Rh8 {[%clk 0:01:46]} 34. Rd6 {[%clk 0:00:19]}  e5 {[%clk 0:01:31]} 35. Rd5 {[%clk 0:00:18]}  Ke6 {[%clk 0:01:31]} 36. b5 {[%clk 0:00:18]}  h3 {[%clk 0:01:20]} 37. gxh3 {[%clk 0:00:13]}  Rxh3+ {[%clk 0:01:21]} 38. Rxh3 {[%clk 0:00:12]}  gxh3 {[%clk 0:01:22]} 39. Rd3 {[%clk 0:00:11]}  Rxc5 {[%clk 0:01:15]} 40. Rxh3 {[%clk 0:00:11]}  Rc7 {[%clk 0:01:11]} 41. Kb4 {[%clk 0:00:11]}  e4 {[%clk 0:01:09]} 42. b6 {[%clk 0:00:12]}  axb6 {[%clk 0:01:09]} 43. axb6 {[%clk 0:00:13]}  Rc8 {[%clk 0:01:05]} 44. Kb5 {[%clk 0:00:13]}  f5 {[%clk 0:01:03]} 45. c5 {[%clk 0:00:13]}  Kd5 {[%clk 0:01:03]} 46. Rc3 {[%clk 0:00:11]}  f4 {[%clk 0:00:59]} 47. b7 {[%clk 0:00:11]}  Rb8 {[%clk 0:00:54]} 48. Kb6 {[%clk 0:00:08]}  Kd4 {[%clk 0:00:53]} 49. Rc1 {[%clk 0:00:07]}  e3 {[%clk 0:00:51]} 50. fxe3+ {[%clk 0:00:06]}  fxe3 {[%clk 0:00:52]} 51. c6 {[%clk 0:00:07]}  Re8 {[%clk 0:00:50]} 52. c7 {[%clk 0:00:07]}  Re6+ {[%clk 0:00:49]} 53. Ka7 {[%clk 0:00:07]}  e2 {[%clk 0:00:47]} 54. b8=Q {[%clk 0:00:07]}  e1=Q {[%clk 0:00:47]} 55. Rxe1 {[%clk 0:00:06]}  Rxe1 {[%clk 0:00:48]} 56. Qb4+ {[%clk 0:00:06]}  Kd5 {[%clk 0:00:45]} 57. Qxe1 {[%clk 0:00:07]}  Kd6 {[%clk 0:00:45]} 58. Qc1 {[%clk 0:00:08]}  Kd5 {[%clk 0:00:44]} 59. c8=Q {[%clk 0:00:08]}  Kd6 {[%clk 0:00:45]} 60. Qa6+ {[%clk 0:00:08]}  Kd5 {[%clk 0:00:44]} 61. Qb5+ {[%clk 0:00:08]}  Kd4 {[%clk 0:00:44]} 62. Qbc4+ {[%clk 0:00:09]}  Ke5 {[%clk 0:00:44]} 63. Qc5+ {[%clk 0:00:09]}  Ke4 {[%clk 0:00:44]} 64. Q5c4+ {[%clk 0:00:10]}  Ke5 {[%clk 0:00:44]} 65. Qe2+ {[%clk 0:00:09]}  Kd4 {[%clk 0:00:44]} 66. Qcd1+ {[%clk 0:00:10]}  Kc5 {[%clk 0:00:44]} 67. Qec2+ {[%clk 0:00:10]}  Kb5 {[%clk 0:00:43]} 68. Qdb1+ {[%clk 0:00:10]}  Ka5 {[%clk 0:00:44]} 69. Qc3+ {[%clk 0:00:09]}  Ka4 {[%clk 0:00:44]} 70. Qc4+ {[%clk 0:00:10]}  Ka5 {[%clk 0:00:43]} 71. Qc5+ {[%clk 0:00:10]}  Ka4 {[%clk 0:00:44]} 72. Qbc2# {[%clk 0:00:10]} 1-0


[Site "https://www.chess.com"]

[Event "Titled Tuesday Blitz December 06 Early 2022"]
[White "Borgaonkar Akshay"]
[Black "Piesik, Piotr"]
[WhiteFideId "25639110"]
[BlackFideId "1136194"]
[WhiteElo "2063"]
[BlackElo "2316"]
[Result "0-1"]
[Round "11"]
[TimeControl "180+1"]
[Date "2022.12.06"]
[WhiteClock "0:00:26"]
[BlackClock "0:01:28"]

1. Nf3 {[%clk 0:02:56]}  g6 {[%clk 0:02:59]} 2. b3 {[%clk 0:02:57]}  Bg7 {[%clk 0:02:59]} 3. d4 {[%clk 0:02:57]}  c5 {[%clk 0:02:58]} 4. Bb2 {[%clk 0:02:56]}  cxd4 {[%clk 0:02:57]} 5. Bxd4 {[%clk 0:02:57]}  Nf6 {[%clk 0:02:57]} 6. e4 {[%clk 0:02:57]}  Nc6 {[%clk 0:02:57]} 7. Bb2 {[%clk 0:02:56]}  d6 {[%clk 0:02:57]} 8. e5 {[%clk 0:02:50]}  dxe5 {[%clk 0:02:55]} 9. Qxd8+ {[%clk 0:02:50]}  Nxd8 {[%clk 0:02:55]} 10. Bxe5 {[%clk 0:02:49]}  Nc6 {[%clk 0:02:54]} 11. Bb2 {[%clk 0:02:48]}  O-O {[%clk 0:02:50]} 12. Nbd2 {[%clk 0:02:48]}  Bf5 {[%clk 0:02:50]} 13. Rc1 {[%clk 0:02:43]}  Nb4 {[%clk 0:02:49]} 14. Nd4 {[%clk 0:02:39]}  Nxa2 {[%clk 0:02:49]} 15. Ra1 {[%clk 0:02:37]}  Nb4 {[%clk 0:02:49]} 16. Nxf5 {[%clk 0:02:38]}  gxf5 {[%clk 0:02:46]} 17. Ra4 {[%clk 0:02:24]}  a5 {[%clk 0:02:37]} 18. c3 {[%clk 0:02:14]}  Nbd5 {[%clk 0:02:28]} 19. Bd3 {[%clk 0:02:13]}  e6 {[%clk 0:02:24]} 20. O-O {[%clk 0:02:09]}  Rfc8 {[%clk 0:02:22]} 21. Rc4 {[%clk 0:01:56]}  b5 {[%clk 0:02:16]} 22. Rxc8+ {[%clk 0:01:56]}  Rxc8 {[%clk 0:02:16]} 23. Bxb5 {[%clk 0:01:56]}  Nxc3 {[%clk 0:02:14]} 24. Bxc3 {[%clk 0:01:50]}  Rxc3 {[%clk 0:02:15]} 25. Ba4 {[%clk 0:01:46]}  Nd5 {[%clk 0:02:11]} 26. Nc4 {[%clk 0:01:44]}  Bd4 {[%clk 0:01:56]} 27. Nxa5 {[%clk 0:01:41]}  Nf4 {[%clk 0:01:49]} 28. g3 {[%clk 0:01:29]}  Nd3 {[%clk 0:01:44]} 29. Nc6 {[%clk 0:01:26]}  Bb6 {[%clk 0:01:40]} 30. Bb5 {[%clk 0:01:07]}  Nxf2 {[%clk 0:01:36]} 31. Bc4 {[%clk 0:00:40]}  Ng4+ {[%clk 0:01:31]} 32. Kg2 {[%clk 0:00:26]}  Ne3+ {[%clk 0:01:30]} 33. Kg1 {[%clk 0:00:26]}  Nxc4+ {[%clk 0:01:28]} 0-1


[Site "https://www.chess.com"]

[Event "Titled Tuesday Blitz December 06 Early 2022"]
[White "Chernomordik, Pavel"]
[Black "Kuchava, Ana"]
[WhiteFideId "2804530"]
[BlackFideId "13605348"]
[WhiteElo "2193"]
[BlackElo "2001"]
[Result "1-0"]
[Round "11"]
[TimeControl "180+1"]
[Date "2022.12.07"]
[WhiteClock "0:00:28"]
[BlackClock "0:00:04"]

1. e4 {[%clk 0:03:00]}  c5 {[%clk 0:02:58]} 2. Nc3 {[%clk 0:03:00]}  Nc6 {[%clk 0:02:54]} 3. Bb5 {[%clk 0:02:59]}  Nd4 {[%clk 0:02:52]} 4. Bc4 {[%clk 0:02:59]}  e6 {[%clk 0:02:49]} 5. Nge2 {[%clk 0:02:59]}  a6 {[%clk 0:02:42]} 6. Nxd4 {[%clk 0:02:53]}  cxd4 {[%clk 0:02:42]} 7. Ne2 {[%clk 0:02:54]}  Qb6 {[%clk 0:02:36]} 8. a4 {[%clk 0:02:39]}  d6 {[%clk 0:02:30]} 9. a5 {[%clk 0:02:36]}  Qc5 {[%clk 0:02:20]} 10. d3 {[%clk 0:02:34]}  Nf6 {[%clk 0:02:18]} 11. Ng3 {[%clk 0:02:25]}  Be7 {[%clk 0:02:14]} 12. O-O {[%clk 0:02:23]}  O-O {[%clk 0:02:10]} 13. Bb3 {[%clk 0:02:12]}  h6 {[%clk 0:01:50]} 14. f4 {[%clk 0:02:10]}  e5 {[%clk 0:01:26]} 15. f5 {[%clk 0:01:55]}  d5 {[%clk 0:01:19]} 16. Nh5 {[%clk 0:01:50]}  dxe4 {[%clk 0:01:10]} 17. Nxf6+ {[%clk 0:01:40]}  Bxf6 {[%clk 0:01:11]} 18. dxe4 {[%clk 0:01:39]}  d3+ {[%clk 0:01:01]} 19. Kh1 {[%clk 0:01:38]}  dxc2 {[%clk 0:00:59]} 20. Bxc2 {[%clk 0:01:34]}  Rd8 {[%clk 0:00:54]} 21. Qe2 {[%clk 0:01:33]}  Bd7 {[%clk 0:00:54]} 22. Be3 {[%clk 0:01:31]}  Qb4 {[%clk 0:00:48]} 23. Bd3 {[%clk 0:01:14]}  Bc6 {[%clk 0:00:39]} 24. Bb6 {[%clk 0:01:11]}  Rxd3 {[%clk 0:00:29]} 25. Qxd3 {[%clk 0:01:10]}  Bb5 {[%clk 0:00:29]} 26. Qd5 {[%clk 0:00:59]}  Bxf1 {[%clk 0:00:27]} 27. Rxf1 {[%clk 0:00:58]}  Qxb2 {[%clk 0:00:22]} 28. Qxb7 {[%clk 0:00:56]}  Rd8 {[%clk 0:00:18]} 29. Qxa6 {[%clk 0:00:51]}  Rd2 {[%clk 0:00:18]} 30. Rg1 {[%clk 0:00:48]}  Bg5 {[%clk 0:00:15]} 31. Qc8+ {[%clk 0:00:41]}  Kh7 {[%clk 0:00:15]} 32. Qc4 {[%clk 0:00:39]}  f6 {[%clk 0:00:07]} 33. Qc1 {[%clk 0:00:30]}  Qxc1 {[%clk 0:00:04]} 34. Rxc1 {[%clk 0:00:29]}  Re2 {[%clk 0:00:04]} 35. Ra1 {[%clk 0:00:28]}  Rxe4 {[%clk 0:00:04]} 36. a6 {[%clk 0:00:28]} 1-0


[Site "https://www.chess.com"]